[Event "ESP-chT Primera Division 2019"]
[Site "Linares"]
[Date "2019.08.29"]
[Round "4.9"]
[White "Martins, David Pires Tavares"]
[Black "Cuenca Jimenez, Jose Fernando"]
[Result "1-0"]
[ECO "D35"]
[WhiteElo "2427"]
[BlackElo "2515"]
[Annotator "ChessBase"]
[PlyCount "121"]
[EventDate "2019.08.26"]
[EventType "team-tourn"]
[EventCountry "ESP"]
[SourceTitle "playchess.com"]
[Source "ChessBase"]
[SourceQuality "1"]
[TimeControl "5400+30"]

1. d4 {[%emt 0:00:00]} d5 {[%emt 0:00:15]} 2. c4 {[%emt 0:00:00]} e6 {[%emt 0:00:09]} 3. Nc3 {[%emt 0:00:00]} Nf6 {[%emt 0:00:55]} 4. cxd5 {[%emt 0:00:00]} exd5 {[%emt 0:00:09]} 5. Bg5 {[%emt 0:00:09]} Be7 {[%emt 0:00:18]} 6. e3 {[%emt 0:00:12]} c6 {[%emt 0:00:12]} 7. Qc2 {[%emt 0:01:03]} Nbd7 {[%emt 0:00:37]} 8. Nf3 {[%emt 0:02:41]} Nh5 {[%emt 0:01:26]} 9. h4 {[%emt 0:01:35]} Ndf6 {[%emt 0:03:16]} 10. Ne5 {[%emt 0:02:40]} h6 {[%emt 0:08:31]} 11. Be2 {[%emt 0:00:58]} hxg5 {[%emt 0:03:43]} 12. hxg5 {[%emt 0:00:12]} Nd7 {[%emt 0:21:15]} 13. Nxd7 {[%emt 0:25:25]} Qxd7 {[%emt 0:07:19]} 14. g6 {[%emt 0:02:44]} Qf5 {[%emt 0:02:29]} 15. Qxf5 {[%emt 0:07:00]} Bxf5 {[%emt 0:00:09]} 16. Rxh5 {[%emt 0:00:52]} Rxh5 {[%emt 0:01:00]} 17. gxf7+ {[%emt 0:00:22]} Kd7 {[%emt 0:01:54]} 18. Bxh5 {[%emt 0:00:08]} Rh8 {[%emt 0:01:46]} 19. Bd1 {[%emt 0:00:09]} Rh1+ {[%emt 0:10:08]} 20. Kd2 {[%emt 0:00:20]} Be6 {[%emt 0:10:27]} 21. Rb1 {[%emt 0:07:08]} Rh2 {[%emt 0:15:46]} 22. Bf3 {[%emt 0:01:05]} g5 {[%emt 0:00:01]} 23. Rg1 {[%emt 0:03:43]} Bd6 {[%emt 0:05:12]} 24. Ke1 {[%emt 0:03:33]} g4 {[%emt 0:01:02]} 25. Bd1 {[%emt 0:03:01]} Ke7 {[%emt 0:00:01]} 26. f4 {[%emt 0:00:26]} gxf3 {[%emt 0:00:52]} 27. Bxf3 {[%emt 0:00:07]} Bxf7 {[%emt 0:00:12]} 28. Kf2 {[%emt 0:01:44]} Rh8 {[%emt 0:02:36]} 29. g3 {[%emt 0:00:54]} Rh2+ {[%emt 0:00:21]} 30. Bg2 {[%emt 0:00:07]} Bg6 {[%emt 0:00:22]} 31. Rh1 {[%emt 0:00:40]} Rxh1 {[%emt 0:00:04]} 32. Bxh1 {[%emt 0:00:03]} Kf6 {[%emt 0:00:19]} 33. e4 {[%emt 0:03:43]} dxe4 {[%emt 0:00:11]} 34. Bxe4 {[%emt 0:00:07]} Bf7 {[%emt 0:00:26]} 35. a3 {[%emt 0:03:18]} Kg5 {[%emt 0:01:53]} 36. Bxc6 {[%emt 0:03:27]} Bxg3+ {[%emt 0:01:25]} 37. Kxg3 {[%emt 0:00:06]} bxc6 {[%emt 0:00:00]} 38. Ne4+ {[%emt 0:09:37]} Kf5 {[%emt 0:00:01]} 39. Nd6+ {[%emt 0:00:06]} Ke6 {[%emt 0:00:01]} 40. Nxf7 {[%emt 0:00:06]} Kxf7 {[%emt 0:00:01]} 41. Kf4 {[%emt 0:00:06]} Ke6 {[%emt 0:00:08]} 42. Ke4 {[%emt 0:00:05]} a5 {[%emt 0:00:34]} 43. Kd3 {[%emt 0:00:18]} Kd5 {[%emt 0:00:17]} 44. b3 {[%emt 0:00:07]} c5 {[%emt 0:00:32]} 45. dxc5 {[%emt 0:00:06]} Kxc5 {[%emt 0:00:01]} 46. Ke4 {[%emt 0:00:08]} Kd6 {[%emt 0:04:03]} 47. Kd4 {[%emt 0:00:13]} Kc6 {[%emt 0:00:04]} 48. Kc4 {[%emt 0:00:25]} Kb6 {[%emt 0:00:57]} 49. Kd5 {[%emt 0:00:13]} a4 {[%emt 0:00:12]} 50. b4 {[%emt 0:00:07]} Kb5 {[%emt 0:00:01]} 51. Ke5 {[%emt 0:01:56]} Kc4 {[%emt 0:01:15]} 52. Kd6 {[%emt 0:00:19]} Kb3 {[%emt 0:00:18]} 53. b5 {[%emt 0:00:11]} Kxa3 {[%emt 0:00:01]} 54. b6 {[%emt 0:00:06]} Ka2 {[%emt 0:00:17]} 55. b7 {[%emt 0:00:06]} a3 {[%emt 0:00:02]} 56. b8=Q {[%emt 0:00:11]} Ka1 {[%emt 0:00:02]} 57. Qc7 {[%emt 0:00:39]} Kb2 {[%emt 0:01:42]} 58. Qb6+ {[%emt 0:00:06]} Ka1 {[%emt 0:01:07]} 59. Qc5 {[%emt 0:00:09]} Ka2 {[%emt 0:00:38]} 60. Qc2+ {[%emt 0:00:10]} Ka1 {[%emt 0:00:04]} 61. Kc5 {[%emt 0:00:05]} 1-0

[Event "ESP-chT Primera Division 2019"]
[Site "Linares"]
[Date "2019.08.29"]
[Round "4.10"]
[White "Alshameary Puente, Ismael"]
[Black "Sousa, Andre Ventura"]
[Result "0-1"]
[ECO "D85"]
[WhiteElo "2444"]
[BlackElo "2362"]
[Annotator "NA"]
[PlyCount "110"]
[EventDate "2019.08.26"]
[EventType "team-tourn"]
[EventCountry "ESP"]
[SourceTitle "playchess.com"]
[Source "ChessBase"]
[SourceQuality "1"]
[TimeControl "5400+30"]

1. d4 {[%emt 0:00:00]} Nf6 {[%emt 0:00:00]} 2. c4 {[%emt 0:00:00]} g6 {[%emt 0:00:00]} 3. Nc3 {[%emt 0:00:00]} d5 {[%emt 0:00:00]} 4. cxd5 {[%emt 0:01:14]} Nxd5 {[%emt 0:00:00]} 5. e4 {[%emt 0:00:05]} Nxc3 {[%emt 0:00:00]} 6. bxc3 {[%emt 0:00:05]} Bg7 {[%emt 0:00:00]} 7. Nf3 {[%emt 0:01:54]} c5 {[%emt 0:00:00]} 8. Bb5+ {[%emt 0:01:56]} Nc6 {[%emt 0:00:50]} 9. Rb1 {[%emt 0:01:47]} O-O {[%emt 0:02:09]} 10. d5 {[%emt 0:00:49]} Ne5 {[%emt 0:00:19]} 11. O-O {[%emt 0:01:05]} a6 {[%emt 0:04:29]} 12. Nxe5 {[%emt 0:16:49]} axb5 {[%emt 0:00:26]} 13. f4 {[%emt 0:00:10]} Qa5 {[%emt 0:12:26]} 14. Qb3 {[%emt 0:22:37]} c4 {[%emt 0:06:02]} 15. Qxb5 {[%emt 0:20:42]} Qxc3 {[%emt 0:04:41]} 16. Qb2 {[%emt 0:02:14]} Qa5 {[%emt 0:07:18]} 17. a3 {[%emt 0:02:28]} f5 {[%emt 0:02:23]} 18. Qb4 {[%emt 0:06:18]} fxe4 {[%emt 0:12:30]} 19. Qxc4 {[%emt 0:00:53]} Qa7+ {[%emt 0:11:20]} 20. Kh1 {[%emt 0:00:07]} b5 {[%emt 0:00:09]} 21. Qe2 {[%emt 0:00:36]} Bxe5 {[%emt 0:02:24]} 22. fxe5 {[%emt 0:00:28]} Bg4 {[%emt 0:00:06]} 23. Rxf8+ {[%emt 0:03:09]} Rxf8 {[%emt 0:00:05]} 24. Qe1 {[%emt 0:02:29]} Qd4 {[%emt 0:02:29]} 25. Bh6 {[%emt 0:01:21]} Rf5 {[%emt 0:07:33]} 26. Rc1 {[%emt 0:08:37]} Rh5 {[%emt 0:05:31]} 27. Qg3 {[%emt 0:01:49]} Rxh6 28. Qxg4 Qxe5 {[%emt 0:07:41]} 29. h3 {[%emt 0:01:20]} Rh5 {[%emt 0:00:22]} 30. Qc8+ {[%emt 0:01:51]} Kg7 {[%emt 0:00:04]} 31. Qe8 {[%emt 0:00:05]} e3 {[%emt 0:02:48]} 32. Qxb5 {[%emt 0:01:37]} Qe4 {[%emt 0:01:27]} 33. Rc4 {[%emt 0:01:16]} Rxh3+ {[%emt 0:01:31]} 34. Kg1 {[%emt 0:00:01]} Qe5 {[%emt 0:00:09]} 35. gxh3 {[%emt 0:00:56]} e2 {[%emt 0:00:17]} 36. Rc1 {[%emt 0:00:08]} Qg3+ {[%emt 0:00:43]} 37. Kh1 {[%emt 0:00:01]} Qxh3+ {[%emt 0:00:05]} 38. Kg1 {[%emt 0:00:01]} Qe3+ {[%emt 0:02:05]} 39. Kg2 {[%emt 0:00:19]} Qxc1 {[%emt 0:00:09]} 40. Qxe2 {[%emt 0:00:07]} Qxa3 {[%emt 0:03:37]} 41. Qe5+ {[%emt 0:00:06]} Kf7 {[%emt 0:00:06]} 42. Qf4+ {[%emt 0:00:22]} Ke8 {[%emt 0:00:10]} 43. Qb8+ {[%emt 0:02:54]} Kd7 {[%emt 0:00:10]} 44. Qg8 {[%emt 0:00:15]} Qb2+ {[%emt 0:00:24]} 45. Kf3 {[%emt 0:00:38]} Qf6+ {[%emt 0:00:19]} 46. Ke4 {[%emt 0:00:16]} h5 {[%emt 0:00:17]} 47. Qa8 {[%emt 0:00:18]} Qc3 {[%emt 0:01:41]} 48. Qa4+ {[%emt 0:01:06]} Kd8 {[%emt 0:00:08]} 49. Qa6 {[%emt 0:00:23]} Qc2+ {[%emt 0:00:13]} 50. Ke3 {[%emt 0:00:26]} Ke8 {[%emt 0:00:49]} 51. Qa1 {[%emt 0:00:40]} Qc5+ {[%emt 0:00:37]} 52. Ke4 {[%emt 0:00:10]} Qc4+ {[%emt 0:00:05]} 53. Ke5 {[%emt 0:00:21]} Kf7 {[%emt 0:00:06]} 54. Qb2 {[%emt 0:00:50]} g5 {[%emt 0:00:53]} 55. Qf2+ {[%emt 0:00:30]} Qf4+ {[%emt 0:00:14] Kd4} 0-1

[Event "ESP-chT Primera Division 2019"]
[Site "Linares"]
[Date "2019.08.29"]
[Round "4.11"]
[White "Gomez Dieguez, David"]
[Black "Cori T., Deysi"]
[Result "1/2-1/2"]
[ECO "C11"]
[WhiteElo "2296"]
[BlackElo "2400"]
[Annotator "NA"]
[PlyCount "99"]
[EventDate "2019.08.26"]
[EventType "team-tourn"]
[EventCountry "ESP"]
[SourceTitle "playchess.com"]
[Source "ChessBase"]
[SourceQuality "1"]
[TimeControl "5400+30"]

1. e4 {[%emt 0:00:00]} e6 {[%emt 0:00:00]} 2. d4 {[%emt 0:00:00]} d5 {[%emt 0:00:00]} 3. Nc3 {[%emt 0:00:00]} Nf6 {[%emt 0:00:00]} 4. e5 {[%emt 0:00:00]} Nfd7 {[%emt 0:00:00]} 5. f4 {[%emt 0:00:00]} c5 {[%emt 0:00:07]} 6. Nf3 {[%emt 0:00:00]} Nc6 {[%emt 0:00:20]} 7. Be3 {[%emt 0:00:00]} Be7 {[%emt 0:05:24]} 8. Qd2 {[%emt 0:00:02]} O-O {[%emt 0:04:52]} 9. dxc5 {[%emt 0:00:04]} Bxc5 {[%emt 0:03:40]} 10. O-O-O {[%emt 0:00:16]} Rb8 {[%emt 0:17:53]} 11. Nb5 {[%emt 0:18:24]} Qa5 {[%emt 0:11:42]} 12. Bxc5 {[%emt 0:10:33]} Qxd2+ {[%emt 0:00:56]} 13. Kxd2 {[%emt 0:00:04]} Nxc5 {[%emt 0:00:06]} 14. c4 {[%emt 0:17:26]} dxc4 {[%emt 0:05:37]} 15. Bxc4 {[%emt 0:00:53]} a6 {[%emt 0:04:15]} 16. Nd6 {[%emt 0:02:09]} b5 {[%emt 0:01:30]} 17. Be2 {[%emt 0:00:59]} Nb4 {[%emt 0:00:43]} 18. Nd4 {[%emt 0:02:28]} Nb7 {[%emt 0:12:13]} 19. Nxc8 {[%emt 0:24:22]} Rbxc8 {[%emt 0:03:16]} 20. Rc1 {[%emt 0:04:01]} Nc5 {[%emt 0:09:32]} 21. a3 {[%emt 0:03:57]} Nd5 {[%emt 0:00:31]} 22. Bf3 {[%emt 0:01:29]} Rfd8 {[%emt 0:04:37]} 23. Rhd1 {[%emt 0:06:59]} g6 {[%emt 0:12:10]} 24. Bxd5 {[%emt 0:02:16]} Rxd5 {[%emt 0:00:08]} 25. Ke2 {[%emt 0:01:26]} Rcd8 {[%emt 0:00:51]} 26. Nc6 {[%emt 0:00:42]} Rxd1 {[%emt 0:00:42]} 27. Rxd1 {[%emt 0:00:07]} Rxd1 {[%emt 0:00:09]} 28. Kxd1 {[%emt 0:00:04]} Nd3 {[%emt 0:00:41]} 29. b4 {[%emt 0:01:20]} Nxf4 {[%emt 0:00:50]} 30. Nb8 {[%emt 0:00:52]} Nd3 {[%emt 0:00:24]} 31. Nxa6 {[%emt 0:00:23]} Nxe5 {[%emt 0:01:41]} 32. Nc7 {[%emt 0:00:22]} Nc4 {[%emt 0:00:25]} 33. Nxb5 {[%emt 0:00:04]} Kf8 {[%emt 0:00:39]} 34. Ke2 {[%emt 0:00:20]} e5 {[%emt 0:00:25]} 35. a4 {[%emt 0:01:04]} Ke7 {[%emt 0:00:16]} 36. a5 {[%emt 0:00:15]} Kd7 {[%emt 0:00:27]} 37. Kd3 {[%emt 0:01:15]} Nb2+ {[%emt 0:00:51]} 38. Kc3 {[%emt 0:02:13]} Nd1+ {[%emt 0:00:36]} 39. Kc4 {[%emt 0:00:24]} Kc6 {[%emt 0:00:07]} 40. Nc3 {[%emt 0:01:02]} Nxc3 {[%emt 0:00:45]} 41. Kxc3 {[%emt 0:00:08]} Kb5 {[%emt 0:00:10]} 42. g4 {[%emt 0:00:56]} f5 {[%emt 0:00:10]} 43. gxf5 {[%emt 0:00:30]} gxf5 {[%emt 0:00:00]} 44. Kd3 {[%emt 0:00:18]} f4 {[%emt 0:01:24]} 45. Ke4 {[%emt 0:00:43]} h5 {[%emt 0:00:20]} 46. h4 {[%emt 0:00:04]} Ka6 {[%emt 0:00:10]} 47. Kf3 {[%emt 0:00:38]} Kb5 {[%emt 0:00:05]} 48. Ke4 {[%emt 0:00:03]} Ka6 {[%emt 0:00:03]} 49. Kf3 {[%emt 0:00:04]} Kb5 {[%emt 0:00:04]} 50. Ke4 {[%emt 0:00:04]} 1/2-1/2

[Event "ESP-chT Primera Division 2019"]
[Site "Linares"]
[Date "2019.08.29"]
[Round "4.12"]
[White "Antunez Munoz, Ines"]
[Black "Hernandez Estevez, Yudania"]
[Result "0-1"]
[ECO "B07"]
[WhiteElo "1891"]
[BlackElo "2247"]
[Annotator "NA"]
[PlyCount "102"]
[EventDate "2019.08.26"]
[EventType "team-tourn"]
[EventCountry "ESP"]
[SourceTitle "playchess.com"]
[Source "ChessBase"]
[SourceQuality "1"]
[TimeControl "5400+30"]

1. e4 {[%emt 0:00:00]} d6 {[%emt 0:00:00]} 2. d4 {[%emt 0:00:00]} Nf6 {[%emt 0:00:00]} 3. Nc3 {[%emt 0:00:03]} g6 {[%emt 0:00:15]} 4. Bg5 {[%emt 0:00:29]} Bg7 {[%emt 0:00:36]} 5. e5 {[%emt 0:00:36]} Nfd7 {[%emt 0:14:05]} 6. exd6 {[%emt 0:00:16]} cxd6 {[%emt 0:00:21]} 7. Nf3 {[%emt 0:04:49]} Nc6 {[%emt 0:05:07]} 8. Bc4 {[%emt 0:09:23]} h6 {[%emt 0:04:08]} 9. Be3 {[%emt 0:04:07]} Nf6 {[%emt 0:00:13]} 10. h3 {[%emt 0:01:04]} O-O {[%emt 0:00:26]} 11. Qd2 {[%emt 0:01:42]} Kh7 {[%emt 0:00:14]} 12. a3 {[%emt 0:06:56]} a6 {[%emt 0:00:46]} 13. Rd1 {[%emt 0:07:42]} b5 {[%emt 0:00:42]} 14. Bd3 {[%emt 0:00:09]} b4 {[%emt 0:01:34]} 15. Ne4 {[%emt 0:01:53]} Nd5 {[%emt 0:03:02]} 16. Ng3 {[%emt 0:05:30]} bxa3 {[%emt 0:04:51]} 17. bxa3 {[%emt 0:01:14]} Nxe3 {[%emt 0:02:19]} 18. fxe3 {[%emt 0:02:22]} Qa5 {[%emt 0:01:28]} 19. Be4 {[%emt 0:05:59]} Qxd2+ {[%emt 0:00:49]} 20. Kxd2 {[%emt 0:00:19]} Bd7 {[%emt 0:00:16]} 21. h4 {[%emt 0:04:38]} f5 {[%emt 0:01:10]} 22. Bd3 {[%emt 0:00:54]} Na5 {[%emt 0:07:41]} 23. h5 {[%emt 0:07:03]} g5 {[%emt 0:01:13]} 24. e4 {[%emt 0:01:08]} f4 {[%emt 0:01:36]} 25. e5+ {[%emt 0:02:04]} Kg8 {[%emt 0:03:02]} 26. Ne4 {[%emt 0:03:27]} dxe5 {[%emt 0:01:07]} 27. dxe5 {[%emt 0:01:00]} Bb5 {[%emt 0:00:27]} 28. Nc5 {[%emt 0:03:35]} Rfc8 {[%emt 0:03:58]} 29. Ne6 {[%emt 0:01:31]} Nc4+ {[%emt 0:01:18]} 30. Bxc4 {[%emt 0:03:19]} Rxc4 {[%emt 0:00:12]} 31. Rhe1 {[%emt 0:01:15]} Rac8 {[%emt 0:01:43]} 32. Rc1 {[%emt 0:00:53]} Rc3 {[%emt 0:02:02]} 33. Nfd4 {[%emt 0:02:04]} Rg3 {[%emt 0:04:25]} 34. Rg1 {[%emt 0:00:34]} Bxe5 {[%emt 0:01:00]} 35. Nf5 {[%emt 0:06:37]} Bc3+ {[%emt 0:00:24]} 36. Kd1 {[%emt 0:00:24]} Kf7 {[%emt 0:00:23]} 37. Nxg3 {[%emt 0:01:33]} Kxe6 {[%emt 0:00:15]} 38. Rb1 {[%emt 0:00:27]} fxg3 {[%emt 0:00:59]} 39. a4 {[%emt 0:02:12]} Bc4 {[%emt 0:02:56]} 40. Kc1 {[%emt 0:01:01]} Kf5 {[%emt 0:00:33]} 41. Rb7 {[%emt 0:01:02]} e5 {[%emt 0:00:25]} 42. Rd1 {[%emt 0:02:50]} e4 {[%emt 0:00:28]} 43. Re7 {[%emt 0:00:18]} Rb8 {[%emt 0:04:07]} 44. Rc7 {[%emt 0:00:42]} Rb4 {[%emt 0:00:05]} 45. Rc8 {[%emt 0:00:50]} Rxa4 {[%emt 0:00:27]} 46. Rf8+ {[%emt 0:00:16]} Kg4 {[%emt 0:01:29]} 47. Rb8 {[%emt 0:00:09]} e3 {[%emt 0:01:47]} 48. Rh1 {[%emt 0:04:15]} Ra1+ {[%emt 0:00:47]} 49. Rb1 {[%emt 0:00:11]} Rxb1+ {[%emt 0:00:04]} 50. Kxb1 {[%emt 0:00:09]} e2 {[%emt 0:00:06]} 51. Rc1 {[%emt 0:00:44]} e1=Q {[%emt 0:00:17]} 0-1

[Event "ESP-chT Primera Division 2019"]
[Site "Linares"]
[Date "2019.08.29"]
[Round "4.14"]
[White "Andres Gonzalez, Ivan"]
[Black "Sarana, Alexey"]
[Result "0-1"]
[ECO "D02"]
[WhiteElo "2284"]
[BlackElo "2655"]
[Annotator "RC"]
[PlyCount "68"]
[EventDate "2019.08.26"]
[EventType "team-tourn"]
[EventCountry "ESP"]
[SourceTitle "playchess.com"]
[Source "ChessBase"]
[SourceQuality "1"]
[TimeControl "5400+30"]

1. d4 {[%emt 0:00:00]} Nf6 {[%emt 0:00:00]} 2. Nf3 {[%emt 0:00:08]} d5 {[%emt 0:00:30]} 3. Bf4 {[%emt 0:01:52]} c5 {[%emt 0:00:06]} 4. e3 {[%emt 0:00:45]} Nc6 {[%emt 0:00:05]} 5. Nbd2 {[%emt 0:03:40]} e6 {[%emt 0:00:12]} 6. c3 {[%emt 0:01:13]} cxd4 {[%emt 0:00:05]} 7. exd4 {[%emt 0:01:17]} Nh5 {[%emt 0:00:06]} 8. Bg3 {[%emt 0:06:06]} g6 {[%emt 0:02:11]} 9. Bd3 {[%emt 0:05:26]} Bg7 {[%emt 0:00:13]} 10. O-O {[%emt 0:02:18]} O-O {[%emt 0:00:18]} 11. Re1 {[%emt 0:01:07]} Nxg3 {[%emt 0:00:40]} 12. hxg3 {[%emt 0:00:12]} Qd6 {[%emt 0:00:15]} 13. Qe2 {[%emt 0:08:47]} Re8 {[%emt 0:03:21]} 14. Rad1 {[%emt 0:04:46]} a6 {[%emt 0:06:44]} 15. a3 {[%emt 0:02:54]} Re7 {[%emt 0:06:21]} 16. Qe3 {[%emt 0:04:45]} Bd7 {[%emt 0:04:52]} 17. Ne5 {[%emt 0:12:35]} Be8 {[%emt 0:00:25]} 18. Qf4 {[%emt 0:01:49]} Qd8 {[%emt 0:10:17]} 19. Ndf3 {[%emt 0:03:50]} f6 20. Ng4 {[%emt 0:03:23]} Kh8 {[%emt 0:07:01]} 21. Re2 {[%emt 0:06:25]} h5 {[%emt 0:08:45]} 22. Ngh2 {[%emt 0:01:47]} e5 {[%emt 0:00:45]} 23. dxe5 {[%emt 0:01:19]} fxe5 {[%emt 0:00:01]} 24. Qc1 {[%emt 0:07:58]} Rd7 {[%emt 0:04:36]} 25. Bc2 {[%emt 0:02:12]} e4 {[%emt 0:00:06]} 26. Nd4 {[%emt 0:01:56]} Nxd4 {[%emt 0:00:15]} 27. cxd4 {[%emt 0:00:01]} Rc7 {[%emt 0:01:58]} 28. Qd2 {[%emt 0:05:00]} Bb5 {[%emt 0:00:30]} 29. Ree1 {[%emt 0:00:06]} Rac8 {[%emt 0:00:09]} 30. Bb3 {[%emt 0:00:12]} Bc4 {[%emt 0:00:11]} 31. Ba4 {[%emt 0:01:12]} b5 {[%emt 0:01:53]} 32. Bc2 {[%emt 0:00:26]} Ba2 {[%emt 0:00:09]} 33. Rc1 {[%emt 0:00:53]} Qf6 {[%emt 0:00:10]} 34. Red1 {[%emt 0:01:02]} Qxd4 {[%emt 0:00:20]} 0-1

[Event "ESP-chT Primera Division 2019"]
[Site "Linares"]
[Date "2019.08.29"]
[Round "4.15"]
[White "Arizmendi Martinez, Julen Luis"]
[Black "Vergara Anton, Diego"]
[Result "1-0"]
[ECO "C03"]
[WhiteElo "2512"]
[BlackElo "2128"]
[Annotator "ChessBase"]
[PlyCount "76"]
[EventDate "2019.08.26"]
[EventType "team-tourn"]
[EventCountry "ESP"]
[SourceTitle "playchess.com"]
[Source "ChessBase"]
[SourceQuality "1"]
[TimeControl "5400+30"]

1. e4 {[%emt 0:00:00]} e6 {[%emt 0:00:00]} 2. d4 {[%emt 0:00:20]} d5 {[%emt 0:00:02]} 3. Nd2 {[%emt 0:00:36]} Be7 {[%emt 0:00:22]} 4. e5 {[%emt 0:03:50]} c5 {[%emt 0:01:51]} 5. c3 {[%emt 0:01:06]} Nc6 {[%emt 0:01:09]} 6. Bd3 {[%emt 0:00:14]} cxd4 {[%emt 0:02:07]} 7. cxd4 {[%emt 0:00:58]} Bd7 {[%emt 0:01:41]} 8. Ne2 {[%emt 0:04:09]} Qb6 {[%emt 0:04:18]} 9. Nf3 {[%emt 0:00:38]} O-O-O {[%emt 0:03:20]} 10. O-O {[%emt 0:06:45]} h5 {[%emt 0:07:47]} 11. a3 {[%emt 0:05:54]} Nh6 {[%emt 0:03:16]} 12. b4 {[%emt 0:01:37]} Nf5 {[%emt 0:03:00]} 13. Bxf5 {[%emt 0:22:58]} exf5 {[%emt 0:01:03]} 14. Bg5 {[%emt 0:09:09]} Bxg5 {[%emt 0:04:26]} 15. Nxg5 {[%emt 0:00:24]} Rdf8 {[%emt 0:11:19]} 16. Rc1 {[%emt 0:07:02]} Kb8 {[%emt 0:05:47]} 17. Rc5 {[%emt 0:01:21]} Ne7 {[%emt 0:04:49]} 18. Nf4 {[%emt 0:06:58]} Bb5 {[%emt 0:03:32]} 19. Re1 {[%emt 0:00:44]} Bc4 {[%emt 0:01:22]} 20. e6 {[%emt 0:03:56]} fxe6 {[%emt 0:08:33]} 21. Nfxe6 {[%emt 0:03:30]} Rf6 {[%emt 0:03:06]} 22. Qf3 {[%emt 0:14:37]} Qd6 {[%emt 0:02:04]} 23. Qf4 {[%emt 0:02:50]} Rd8 {[%emt 0:03:03]} 24. Qxd6+ {[%emt 0:00:32]} Rxd6 {[%emt 0:00:01]} 25. Rc7 {[%emt 0:00:07]} Nc8 {[%emt 0:03:02]} 26. Rxg7 {[%emt 0:00:07]} b6 {[%emt 0:03:18]} 27. h4 {[%emt 0:00:43]} Rc6 {[%emt 0:03:29]} 28. Nf4 {[%emt 0:00:09]} Rc7 {[%emt 0:02:28]} 29. Rxc7 {[%emt 0:00:32]} Kxc7 {[%emt 0:00:01]} 30. g3 {[%emt 0:00:45]} Rh6 {[%emt 0:01:30]} 31. Re5 {[%emt 0:01:48]} Nd6 {[%emt 0:02:15]} 32. Nxd5+ {[%emt 0:00:25]} Bxd5 {[%emt 0:00:01]} 33. Rxd5 {[%emt 0:00:01]} Kc6 {[%emt 0:00:32]} 34. Re5 {[%emt 0:00:11]} Nb5 {[%emt 0:00:57]} 35. d5+ {[%emt 0:01:03]} Kd7 {[%emt 0:00:30]} 36. Rxf5 {[%emt 0:00:17]} Nxa3 {[%emt 0:00:55]} 37. Rf7+ {[%emt 0:00:08]} Kd6 {[%emt 0:00:31]} 38. Rf3 {[%emt 0:00:08]} Kxd5 1-0

[Event "ESP-chT Primera Division 2019"]
[Site "Linares"]
[Date "2019.08.29"]
[Round "4.17"]
[White "Garcia Martin, Marta"]
[Black "Badillo Ramos, Steve"]
[Result "1-0"]
[ECO "C06"]
[WhiteElo "2313"]
[BlackElo "1967"]
[Annotator "NA"]
[PlyCount "93"]
[EventDate "2019.08.26"]
[EventType "team-tourn"]
[EventCountry "ESP"]
[SourceTitle "playchess.com"]
[Source "ChessBase"]
[SourceQuality "1"]
[TimeControl "5400+30"]

1. e4 {[%emt 0:00:00]} e6 {[%emt 0:00:00]} 2. d4 {[%emt 0:00:00]} d5 {[%emt 0:00:00]} 3. Nd2 {[%emt 0:00:00]} Nf6 {[%emt 0:00:00]} 4. e5 {[%emt 0:00:00]} Nfd7 {[%emt 0:00:00]} 5. Bd3 {[%emt 0:00:02]} c5 {[%emt 0:00:11]} 6. c3 {[%emt 0:00:06]} Nc6 {[%emt 0:00:06]} 7. Ne2 {[%emt 0:00:07]} cxd4 {[%emt 0:00:13]} 8. cxd4 {[%emt 0:00:05]} f6 {[%emt 0:00:07]} 9. exf6 {[%emt 0:00:07]} Nxf6 {[%emt 0:00:07]} 10. Nf3 {[%emt 0:00:41]} Bd6 {[%emt 0:00:08]} 11. O-O {[%emt 0:00:07]} Qc7 {[%emt 0:00:04]} 12. h3 {[%emt 0:00:53]} O-O {[%emt 0:01:21]} 13. Re1 {[%emt 0:00:15]} e5 {[%emt 0:03:52]} 14. dxe5 {[%emt 0:08:04]} Nxe5 {[%emt 0:01:15]} 15. Nxe5 {[%emt 0:00:37]} Bxe5 {[%emt 0:00:39]} 16. Qb3 {[%emt 0:02:55]} Qf7 {[%emt 0:19:26]} 17. Bf4 {[%emt 0:25:01]} Bxf4 {[%emt 0:21:54]} 18. Nxf4 {[%emt 0:00:07]} Kh8 {[%emt 0:03:08]} 19. f3 {[%emt 0:28:06]} Nh5 {[%emt 0:15:02]} 20. Nxd5 {[%emt 0:12:55]} Be6 {[%emt 0:00:15]} 21. Bc4 {[%emt 0:00:05]} b5 {[%emt 0:07:19]} 22. Qxb5 {[%emt 0:00:39]} Rab8 {[%emt 0:00:09]} 23. Qc6 {[%emt 0:05:23]} Rxb2 {[%emt 0:07:10]} 24. Ne3 {[%emt 0:00:58]} Bxc4 {[%emt 0:00:11]} 25. Nxc4 {[%emt 0:00:10]} Rc2 {[%emt 0:04:36]} 26. Ne5 {[%emt 0:01:20]} Qf5 {[%emt 0:00:42]} 27. Qe4 {[%emt 0:04:35]} g6 {[%emt 0:03:41]} 28. Qd4 {[%emt 0:04:17]} Kg8 {[%emt 0:06:51]} 29. Rac1 {[%emt 0:03:35]} Nf4 {[%emt 0:00:28]} 30. Rxc2 {[%emt 0:00:58]} Qxc2 {[%emt 0:00:06]} 31. Qc4+ {[%emt 0:00:03]} Qxc4 {[%emt 0:00:08]} 32. Nxc4 {[%emt 0:00:03]} Rc8 {[%emt 0:01:28]} 33. Re4 {[%emt 0:00:34]} Ne2+ {[%emt 0:00:45]} 34. Rxe2 {[%emt 0:00:58]} Rxc4 {[%emt 0:00:04]} 35. Kf2 {[%emt 0:01:04]} Ra4 {[%emt 0:00:31]} 36. g4 {[%emt 0:02:04]} g5 {[%emt 0:00:30]} 37. Kg3 {[%emt 0:00:32]} Ra3 {[%emt 0:02:43]} 38. Rf2 {[%emt 0:00:52]} Kf7 {[%emt 0:01:37]} 39. h4 {[%emt 0:00:16]} h6 {[%emt 0:00:42]} 40. h5 {[%emt 0:00:36]} Ke6 {[%emt 0:00:18]} 41. Rd2 {[%emt 0:00:43]} Ke5 {[%emt 0:00:14]} 42. Re2+ {[%emt 0:00:26]} Kd4 {[%emt 0:01:13]} 43. Re6 {[%emt 0:00:18]} Rxa2 {[%emt 0:01:44]} 44. Rxh6 {[%emt 0:00:08]} Ra5 {[%emt 0:00:30]} 45. Rg6 {[%emt 0:00:39]} Rb5 {[%emt 0:00:31]} 46. h6 {[%emt 0:00:23]} Rb7 {[%emt 0:00:30]} 47. Rxg5 {[%emt 0:00:19] Kd5} 1-0